bitfinex-derivatives/quotes_SOLF0:USTF0_20260305
["timestamp","ask_amount","ask_price","bid_price","bid_amount"]
[1772691383588,3.77745359,89.997,89.95,2.84527616]
[1772691383992,3.77745359,89.997,89.951,3.68545647]
[1772691384397,13.77545359,89.996,89.951,3.68545647]
[1772691384692,6.62272975,89.99,89.951,3.68545647]
[1772691384897,6.62272975,89.99,89.886,20.022]
[1772691384898,3.77745359,89.989,89.941,3.68545647]
[1772691385093,3.77745359,89.979,89.93,2.84527616]
[1772691385497,44.45112704,90.024,89.92,2.84527616]
[1772691385498,3.77745359,89.969,89.92,2.84527616]
[1772691385704,17.86486558,90.023,89.913,10.008]
[1772691385705,2.84527616,89.96,89.913,3.68545647]
[1772691386100,3.77745359,89.967,89.913,3.68545647]
[1772691387403,3.77745359,89.967,89.92,6.71847304]
[1772691387603,3.77745359,89.967,89.921,3.87319688]
[1772691387899,6.60047997,89.96,89.921,3.87319688]
[1772691388099,3.75520381,89.949,89.9,2.84527616]
[1772691388700,3.75520381,89.947,89.9,2.84527616]
[1772691388901,3.75520381,89.947,89.894,3.87319688]
[1772691389901,3.75520381,89.947,89.9,6.71847304]
[1772691390105,10.004,89.945,89.9,3.87319688]
[1772691390298,10.004,89.945,89.901,3.87319688]
[1772691391204,10.005,89.937,89.901,3.87319688]
[1772691392308,10.004,89.946,89.901,3.87319688]
[1772691392808,3.75520381,89.947,89.901,3.87319688]
[1772691393604,2.84527616,89.96,89.91,2.84527616]
[1772691393804,3.75520381,89.962,89.921,3.87319688]
[1772691396107,10.002,89.961,89.921,3.87319688]
[1772691396313,3.75520381,89.949,89.907,3.87319688]
[1772691397209,3.75520381,89.939,89.892,3.87319688]
[1772691400506,10.005,89.937,89.892,3.87319688]
[1772691401505,10.005,89.937,89.893,3.87319688]
[1772691401703,3.75520381,89.952,89.901,3.87319688]
[1772691401905,2.84527616,89.95,89.901,3.87319688]
[1772691402102,3.75520381,89.949,89.901,3.87319688]
[1772691403316,13.75920381,89.947,89.901,3.87319688]
[1772691405014,10.004,89.944,89.901,3.87319688]
[1772691406614,3.75520381,89.946,89.902,3.87319688]
[1772691408510,3.75520381,89.946,89.903,10.009]
[1772691409209,3.75520381,89.946,89.91,10.008]
[1772691409610,3.65952033,89.957,89.911,3.70503083]
[1772691409805,3.65952033,89.949,89.9,2.84527616]
[1772691410213,3.65952033,89.947,89.903,10.009]
[1772691410413,2.84527616,89.94,89.899,3.70503083]
[1772691410615,3.65952033,89.939,89.899,3.70503083]
[1772691412518,3.65952033,89.939,89.9,10.009]
[1772691415416,3.65952033,89.939,89.899,3.70503083]
[1772691417522,3.65952033,89.95,89.901,3.70503083]
[1772691418526,10.004,89.948,89.903,3.70503083]
[1772691419219,13.66352033,89.948,89.903,3.70503083]
[1772691419422,3.65952033,89.944,89.903,3.70503083]
[1772691420517,10.004,89.943,89.903,3.70503083]
[1772691420714,3.65952033,89.942,89.903,3.70503083]
[1772691421217,13.66452033,89.941,89.903,3.70503083]
[1772691422528,10.005,89.934,89.903,3.70503083]
[1772691424020,2.84527616,89.95,89.903,3.70503083]
[1772691424221,3.65952033,89.958,89.911,3.70503083]
[1772691425422,13.66252033,89.958,89.912,3.70503083]
[1772691425621,3.65952033,89.957,89.912,3.70503083]
[1772691426027,3.65952033,89.944,89.901,3.70503083]
[1772691426229,2.84527616,89.94,89.901,3.70503083]
[1772691426426,3.65952033,89.939,89.901,3.70503083]
[1772691427530,10.005,89.938,89.901,3.70503083]
[1772691431434,13.84788199,89.938,89.901,3.70503083]
[1772691431631,10.006,89.932,89.901,3.70503083]
[1772691431833,3.84288199,89.932,89.888,3.68966545]
[1772691432034,3.84288199,89.929,89.88,12.85627616]
[1772691432235,3.84288199,89.925,89.88,12.85627616]
[1772691432534,3.84288199,89.925,89.88,10.011]
[1772691433537,3.84288199,89.925,89.88,16.54594161]
[1772691434430,3.84288199,89.925,89.888,3.68966545]
[1772691435741,8.60014694,89.937,89.888,3.68966545]
[1772691435937,3.84288199,89.935,89.888,3.68966545]
[1772691436334,9.36358485,89.946,89.902,3.68966545]
[1772691436532,3.84288199,89.948,89.902,3.68966545]
[1772691437032,3.84288199,89.946,89.902,3.68966545]
[1772691437232,3.84288199,89.944,89.902,3.68966545]
[1772691437835,3.84288199,89.939,89.89,2.84527616]
[1772691438039,3.84288199,89.939,89.891,3.68966545]
[1772691438339,3.84288199,89.939,89.824,155.835]
[1772691438340,3.84288199,89.952,89.907,3.68966545]
[1772691438531,12.21360455,89.96,89.911,3.68966545]
[1772691438731,3.84288199,89.964,89.921,3.68015764]
[1772691439832,3.84288199,89.964,89.923,3.68015764]
[1772691444242,13.94966317,89.976,89.923,3.68015764]
[1772691444443,8.60003098,89.975,89.923,3.68015764]
[1772691444642,8.60003098,89.974,89.923,3.68015764]
[1772691444841,8.60003098,89.973,89.923,3.68015764]
[1772691445042,10.001,89.971,89.925,3.68015764]
[1772691445237,3.94866317,89.969,89.911,3.68015764]
[1772691445541,3.94866317,89.949,89.911,3.68015764]
[1772691445742,2.84742719,89.94,89.897,3.68015764]
[1772691446340,3.94866317,89.946,89.897,3.68015764]
[1772691446738,3.94866317,89.946,89.9,2.84742719]
[1772691446942,3.94866317,89.946,89.897,3.68015764]
[1772691447341,13.66534697,89.943,89.897,3.68015764]
[1772691447544,3.66134697,89.942,89.897,3.68015764]
[1772691448446,10.005,89.939,89.897,3.68015764]
[1772691448745,3.66134697,89.957,89.911,3.66440247]
[1772691450849,3.66134697,89.949,89.9,10.009]
[1772691452057,3.66134697,89.939,89.898,3.66440247]
[1772691453153,3.66134697,89.939,89.89,10.01]
[1772691453352,3.66134697,89.937,89.89,10.01]
[1772691454258,3.66134697,89.933,89.836,3.66440247]
[1772691454449,2.84742719,89.91,89.861,3.66440247]
[1772691454952,13.66934697,89.909,89.861,3.66440247]
[1772691455149,3.66134697,89.908,89.861,3.66440247]
[1772691456255,10.008,89.907,89.861,3.66440247]
[1772691458257,3.66134697,89.908,89.863,3.66440247]
[1772691459753,3.66134697,89.908,89.866,3.66440247]
[1772691460752,3.66134697,89.908,89.868,3.66440247]
[1772691461157,3.66134697,89.908,89.87,2.84742719]
[1772691461559,3.66134697,89.908,89.873,10.012]
[1772691462654,3.66134697,89.908,89.868,3.66440247]
[1772691463856,3.66134697,89.899,89.855,3.66440247]
[1772691466855,3.66134697,89.888,89.836,3.66440247]
[1772691467255,3.66134697,89.888,89.84,2.84742719]
[1772691467556,13.67034697,89.899,89.851,3.66440247]
[1772691467960,3.66134697,89.898,89.851,3.66440247]
[1772691468659,3.865642,89.895,89.851,3.66440247]
[1772691469359,2.84742719,89.89,89.851,3.66440247]
[1772691469762,3.865642,89.889,89.851,3.66440247]
[1772691470960,3.865642,89.889,89.852,10.014]
[1772691471863,3.865642,89.889,89.852,14.16497341]
[1772691472564,3.865642,89.904,89.864,4.15097341]
[1772691472761,2.84742719,89.9,89.864,4.15097341]
[1772691473664,6.71306919,89.9,89.864,4.15097341]
[1772691473963,3.865642,89.899,89.851,4.15097341]
[1772691474364,3.865642,89.899,89.855,10.014]
[1772691474559,3.865642,89.899,89.855,14.16497341]
[1772691474861,3.865642,89.899,89.856,4.15097341]
[1772691476466,3.865642,89.899,89.862,10.013]
[1772691476765,3.865642,89.899,89.856,4.15097341]
[1772691479364,10.009,89.898,89.856,4.15097341]
[1772691480464,13.874642,89.898,89.856,4.15097341]
[1772691481258,3.865642,89.897,89.856,4.15097341]
[1772691481768,3.865642,89.909,89.868,4.15097341]
[1772691482272,2.84742719,89.9,89.868,4.15097341]
[1772691482468,3.865642,89.889,89.841,4.15097341]
[1772691483163,3.865642,89.889,89.843,4.15097341]
[1772691484468,10.011,89.887,89.843,4.15097341]
[1772691484669,13.876642,89.887,89.843,4.15097341]
[1772691485165,3.865642,89.887,89.843,4.15097341]
[1772691485368,3.865642,89.898,89.843,4.15097341]
[1772691485669,3.865642,89.898,89.851,4.15097341]
[1772691486168,6.71306919,89.91,89.851,4.15097341]
[1772691486468,10.009,89.903,89.856,4.15097341]
[1772691486675,2.84742719,89.92,89.861,4.15097341]
[1772691486864,6.71306919,89.92,89.871,4.15097341]
[1772691487070,26.58626146,89.927,89.873,4.15097341]
[1772691487265,26.58626146,89.927,89.881,4.15097341]
[1772691487771,3.865642,89.932,89.881,4.15097341]
[1772691488172,10.006,89.926,89.881,4.15097341]
[1772691488374,13.871642,89.926,89.881,4.15097341]
[1772691489068,10.005,89.934,89.891,4.15097341]
[1772691490070,10.005,89.934,89.819,155.844]
[1772691490071,3.865642,89.953,89.901,4.15097341]
[1772691490272,3.865642,89.969,89.911,4.15097341]
[1772691490672,10.002,89.96,89.911,4.15097341]
[1772691490866,2.84742719,89.96,89.911,4.15097341]
[1772691491174,3.865642,89.969,89.921,4.15097341]
[1772691492471,3.865642,89.968,89.921,4.15097341]
[1772691495671,3.865642,89.959,89.921,4.15097341]
[1772691498984,3.66235115,89.988,89.941,3.62249685]
[1772691500779,3.66235115,89.988,89.95,6.46959933]
[1772691501282,3.66235115,90.001,89.951,3.62249685]
[1772691501483,3.66235115,90.0,89.951,3.62249685]
[1772691501684,6.50945363,90.0,89.951,3.62249685]
[1772691502084,3.66235115,90.0,89.951,3.62249685]
[1772691502285,9.997,90.007,89.961,3.62249685]
[1772691502580,9.997,90.007,89.9,20.019]
[1772691502581,3.66235115,90.013,89.971,3.62249685]
[1772691503680,2.84710248,90.02,89.971,3.62249685]
[1772691503880,3.66235115,90.026,89.98,2.84710248]
[1772691504081,13.65735115,90.026,89.981,3.62249685]
[1772691504886,9.996,90.023,89.981,3.62249685]
[1772691505788,13.65835115,90.023,89.981,3.62249685]
[1772691507792,9.994,90.032,89.981,3.62249685]
[1772691507984,3.91087489,90.019,89.97,2.84710248]
[1772691508187,3.91087489,90.019,89.971,3.9107595]
[1772691508388,9.996,90.016,89.971,3.9107595]
[1772691508689,13.90687489,90.016,89.971,3.9107595]
[1772691510188,3.91087489,90.048,90.006,3.9107595]
[1772691510387,3.91087489,90.048,90.01,2.84710248]
[1772691510694,3.91087489,90.048,89.991,3.9107595]
[1772691510991,3.91087489,90.059,90.01,2.84710248]
[1772691511186,2.84710248,90.05,90.001,3.9107595]
[1772691511491,3.91087489,90.049,90.001,3.9107595]
[1772691512490,3.91087489,90.047,90.001,3.9107595]
[1772691513491,1.93298969,90.079,89.946,20.008]
[1772691513492,3.91087489,90.064,90.02,2.84710248]
[1772691514493,3.91087489,90.064,90.02,6.75786198]
[1772691514991,3.91087489,90.064,90.02,3.9107595]
[1772691516292,2.84710248,90.06,90.02,3.9107595]
[1772691516788,2.84710248,90.07,90.023,3.9107595]
[1772691517587,3.91087489,90.077,90.031,3.9107595]
[1772691518494,3.91087489,90.049,90.009,3.9107595]
[1772691519090,3.91087489,90.069,90.011,3.9107595]
[1772691519284,3.91087489,90.069,90.021,3.9107595]
[1772691519594,2.84710248,90.06,90.021,3.9107595]
[1772691519891,3.91087489,90.069,90.021,3.9107595]
[1772691521093,2.84710248,90.06,90.021,3.9107595]
[1772691521298,3.91087489,90.069,90.021,3.9107595]
[1772691522400,3.91087489,90.067,90.021,3.9107595]
[1772691522697,3.91087489,90.049,90.003,3.9107595]
[1772691522899,9.993,90.041,90.003,3.9107595]
[1772691523099,2.84710248,90.04,90.003,3.9107595]
[1772691525098,9.994,90.039,90.003,3.9107595]
[1772691525298,9.994,90.039,89.99,2.84710248]
[1772691525299,2.84710248,90.04,89.99,6.75786198]
[1772691525700,6.75797737,90.04,89.99,6.75786198]
[1772691526301,9.995,90.024,89.99,3.9107595]
[1772691527806,9.994,90.033,89.99,3.9107595]
[1772691527999,3.91087489,90.039,89.99,6.75786198]
[1772691528203,2.84710248,90.05,90.001,3.9107595]
[1772691528404,3.91087489,90.049,90.001,3.9107595]
[1772691529504,9.993,90.042,90.001,3.9107595]
[1772691529803,3.91087489,90.049,90.001,3.9107595]
[1772691530002,3.91087489,90.049,90.002,13.83682129]
[1772691530207,3.91087489,90.049,90.003,3.83882129]
[1772691532202,3.91087489,90.049,90.006,3.83882129]
[1772691532404,26.58626146,90.065,90.011,3.83882129]
[1772691532405,2.84710248,90.06,90.011,3.83882129]
[1772691532614,2.84710248,90.07,90.021,3.83882129]
[1772691532804,3.79302107,90.072,90.03,2.84710248]
[1772691533109,3.79302107,90.089,90.031,3.83882129]
[1772691534501,13.78102107,90.087,90.041,9.993]
[1772691534699,3.79302107,90.087,90.042,3.83882129]
[1772691535900,3.79302107,90.087,90.04,2.84710248]
[1772691536100,3.79302107,90.087,90.038,9.994]
[1772691536306,3.79302107,90.087,90.039,3.83882129]
[1772691536515,2.84710248,90.1,90.051,3.83882129]
[1772691537306,2.84710248,90.09,90.051,3.83882129]
[1772691541215,13.78002107,90.098,90.051,3.83882129]
[1772691541415,9.988,90.087,90.051,3.83882129]
[1772691541814,13.78002107,90.097,90.051,3.83882129]
[1772691542209,3.79302107,90.097,90.051,3.83882129]
[1772691542612,3.79302107,90.097,89.952,155.614]
[1772691542613,3.79302107,90.135,90.07,2.84710248]
[1772691542809,3.79302107,90.148,90.1,2.84710248]
[1772691543007,13.77502107,90.148,90.101,3.83882129]
[1772691544209,9.982,90.148,90.101,3.83882129]
[1772691545410,2.84710248,90.16,90.101,3.83882129]
[1772691545617,10.25546376,90.187,89.993,11.13]
[1772691545618,2.84710248,90.17,90.121,3.83882129]
[1772691546015,3.79302107,90.177,90.131,3.83882129]
[1772691546214,9.978,90.179,90.131,3.83882129]
[1772691547721,12.82610248,90.17,90.131,3.83882129]
[1772691548015,6.64012355,90.15,90.1,2.84710248]
[1772691548217,2.84710248,90.14,90.094,3.83882129]
[1772691548718,6.64012355,90.14,90.094,3.83882129]
[1772691548918,9.983,90.138,90.094,3.83882129]
[1772691549112,6.64012355,90.14,90.094,3.83882129]
[1772691549310,3.79302107,90.14,90.094,3.83882129]
[1772691549511,9.983,90.14,90.1,2.84710248]
[1772691549822,2.84710248,90.13,90.081,3.83882129]
[1772691550216,9.984,90.127,90.081,3.83882129]
[1772691550719,3.79302107,90.139,90.081,3.83882129]
[1772691550922,3.79302107,90.139,90.061,3.83882129]
[1772691551422,9.986,90.112,90.061,3.83882129]
[1772691552015,3.79302107,90.12,90.065,3.83882129]
[1772691552422,9.984,90.123,90.065,3.83882129]
[1772691553523,3.79302107,90.159,90.065,3.83882129]
[1772691554224,19.955,90.186,90.06,7.59770996]
[1772691554225,3.79302107,90.179,90.096,3.83882129]
[1772691554624,3.79302107,90.174,90.106,3.83882129]
[1772691555619,3.79302107,90.161,90.106,3.83882129]
[1772691556021,3.79302107,90.159,90.087,3.83882129]
[1772691556818,3.79302107,90.142,90.087,3.83882129]
[1772691557020,3.79302107,90.142,90.073,9.99]
[1772691557421,3.79302107,90.131,90.073,9.99]
[1772691557622,3.79302107,90.131,90.072,3.83882129]
[1772691558119,9.984,90.13,90.072,3.83882129]
[1772691558323,3.79302107,90.129,90.072,3.83882129]
[1772691559320,3.64316523,90.145,90.072,3.83882129]
[1772691560525,13.62516523,90.144,90.093,9.988]
[1772691560728,3.64316523,90.143,90.072,3.83882129]
[1772691561022,9.983,90.139,90.074,3.80312233]
[1772691561328,3.64316523,90.143,90.074,3.80312233]
[1772691562417,3.64316523,90.141,90.078,3.80312233]
[1772691563527,9.984,90.13,90.078,3.80312233]
[1772691564923,3.64316523,90.159,90.081,3.80312233]
[1772691565325,3.64316523,90.179,90.106,3.80312233]
[1772691566022,9.979,90.168,90.114,3.80312233]
[1772691566222,3.64316523,90.179,90.114,3.80312233]
[1772691566624,13.62116523,90.179,90.127,3.80312233]
[1772691567027,3.64316523,90.179,90.127,3.80312233]
[1772691567329,3.70065143,90.199,90.127,3.80312233]
[1772691567529,9.977,90.188,90.131,3.92401047]
[1772691568026,9.976,90.197,90.133,3.92401047]
[1772691568730,13.67665143,90.197,90.133,3.92401047]
[1772691569324,3.70065143,90.197,90.146,3.92401047]
[1772691569933,3.70065143,90.197,90.146,13.90601047]
[1772691570227,3.70065143,90.197,90.146,3.92401047]
[1772691570432,1.9299024,90.229,90.13,3.92401047]
[1772691570433,3.70065143,90.186,90.13,3.92401047]
[1772691570932,3.70065143,90.184,90.116,3.92401047]
[1772691571325,3.70065143,90.184,90.038,155.465]
[1772691571326,3.70065143,90.228,90.141,3.92401047]
[1772691571630,3.70065143,90.217,90.155,3.92401047]
[1772691572437,7.59701283,90.24,90.14,7.59701283]
[1772691572438,9.972,90.231,90.164,3.92401047]
[1772691572642,3.70065143,90.23,90.164,3.92401047]
[1772691573131,3.70065143,90.228,90.164,3.92401047]
[1772691573338,3.70065143,90.228,90.141,3.92401047]
[1772691574033,3.70065143,90.245,90.162,3.92401047]
[1772691574337,3.70065143,90.239,90.162,3.92401047]
[1772691574537,9.973,90.222,90.165,3.92401047]
[1772691574733,3.70065143,90.221,90.165,3.92401047]
[1772691576338,3.70065143,90.248,90.181,3.92401047]
[1772691576740,9.972,90.238,90.181,3.92401047]
[1772691577736,3.70065143,90.235,90.147,3.92401047]
[1772691578139,3.70065143,90.235,90.171,3.92401047]
[1772691578344,3.70065143,90.235,90.185,9.977]
[1772691579137,3.70065143,90.268,90.186,3.92401047]
[1772691579337,3.70065143,90.266,90.207,3.92401047]
[1772691579534,3.70065143,90.266,90.211,3.92401047]
[1772691580140,3.70065143,90.298,90.211,3.92401047]
[1772691580345,124.0,90.32,90.136,155.296]
[1772691580346,3.70065143,90.296,90.221,3.92401047]
[1772691580541,3.70065143,90.296,90.203,3.92401047]
[1772691581238,3.70065143,90.279,90.203,3.92401047]
[1772691582047,3.70065143,90.279,90.232,9.972]
[1772691582239,3.70065143,90.296,90.232,3.92401047]
[1772691582740,3.70065143,90.296,90.242,9.971]
[1772691582946,3.70065143,90.296,90.243,3.92401047]
[1772691583245,3.70065143,90.296,90.244,9.971]
[1772691583446,3.70065143,90.296,90.243,3.92401047]
[1772691583944,3.70065143,90.296,90.257,9.97]
[1772691584137,3.70065143,90.296,90.243,3.92401047]
[1772691584339,3.70065143,90.296,90.243,13.89501047]
[1772691584538,3.70065143,90.296,90.226,3.92401047]
[1772691585449,3.70065143,90.293,90.226,3.92401047]
[1772691586649,3.70065143,90.291,90.226,3.92401047]
[1772691587053,3.70065143,90.291,90.243,9.971]
[1772691587851,3.70065143,90.291,90.233,13.89601047]
[1772691588252,3.70065143,90.29,90.233,13.89601047]
[1772691589252,3.9590952,90.283,90.223,9.973]
[1772691589448,3.9590952,90.283,90.215,3.93289945]
[1772691589650,3.9590952,90.309,90.221,3.93289945]
[1772691591048,9.965,90.302,90.234,9.972]
[1772691591248,3.9590952,90.301,90.235,3.93289945]
[1772691591652,3.9590952,90.286,90.229,9.973]
[1772691592450,3.9590952,90.283,90.229,9.973]
[1772691592651,3.9590952,90.283,90.22,9.974]
[1772691593155,3.9590952,90.272,90.203,3.93289945]
[1772691594357,3.9590952,90.272,90.214,3.93289945]
[1772691594559,3.9590952,90.309,90.221,3.93289945]
[1772691594955,3.9590952,90.296,90.221,3.93289945]
[1772691595957,3.9590952,90.293,90.221,3.93289945]
[1772691597453,9.966,90.288,90.224,3.93289945]
[1772691597860,3.9590952,90.293,90.224,3.93289945]
[1772691598056,9.968,90.272,90.224,3.93289945]
[1772691598367,3.9590952,90.277,90.224,3.93289945]
[1772691598863,9.968,90.273,90.224,13.90589945]
[1772691599162,3.9590952,90.277,90.224,13.90589945]
[1772691599361,3.9590952,90.299,90.225,3.93289945]
[1772691600167,9.967,90.282,90.228,9.973]
[1772691600464,3.9590952,90.299,90.228,9.973]
[1772691600767,9.968,90.268,90.209,13.90789945]
[1772691600968,3.9590952,90.299,90.209,3.93289945]
[1772691601157,3.9590952,90.299,90.221,3.93289945]
[1772691601357,3.9590952,90.299,90.22,7.59701283]
[1772691601358,3.9590952,90.299,90.232,3.93289945]
[1772691602456,9.965,90.295,90.241,9.971]
[1772691602656,3.9590952,90.299,90.232,3.93289945]
[1772691603157,9.967,90.279,90.232,3.93289945]
[1772691604768,3.9590952,90.28,90.201,3.93289945]
[1772691604968,3.9590952,90.28,90.213,3.93289945]
[1772691606466,9.97,90.257,90.213,3.93289945]
[1772691606865,3.9590952,90.265,90.194,3.93289945]
[1772691608269,26.58626146,90.279,90.204,3.93289945]
[1772691608466,3.9590952,90.278,90.204,3.93289945]
[1772691608865,26.58626146,90.279,90.216,9.974]
[1772691608866,13.9270952,90.269,90.216,9.974]
[1772691609368,13.9270952,90.269,90.204,3.93289945]
[1772691610268,13.9270952,90.269,90.216,3.93289945]
[1772691610871,9.969,90.261,90.216,3.93289945]
[1772691611571,13.9270952,90.269,90.218,3.93289945]
[1772691611768,3.9590952,90.292,90.218,3.93289945]
[1772691612071,3.9590952,90.292,90.221,3.93289945]
[1772691612973,9.966,90.289,90.24,3.93289945]
[1772691616164,9.967,90.281,90.24,3.93289945]
[1772691616370,3.9590952,90.292,90.24,3.93289945]
[1772691617072,3.9590952,90.292,90.242,9.971]
[1772691617264,3.9590952,90.292,90.243,3.93289945]
[1772691617972,13.9250952,90.291,90.243,3.93289945]
[1772691618169,3.9590952,90.29,90.243,3.93289945]
[1772691618563,3.91078373,90.287,90.234,9.972]
[1772691618973,3.91078373,90.287,90.226,3.75964456]
[1772691619172,9.966,90.286,90.226,3.75964456]
[1772691619473,3.91078373,90.285,90.228,9.973]
[1772691619666,3.91078373,90.285,90.226,3.75964456]
[1772691620271,9.967,90.281,90.235,9.972]
[1772691620463,9.46136678,90.284,90.191,19.954]
[1772691620464,3.91078373,90.299,90.25,3.53278563]
[1772691620662,3.91078373,90.297,90.25,3.53278563]
[1772691620862,9.50878434,90.296,90.25,3.53278563]
[1772691621065,8.51726169,90.295,90.26,3.53278563]
[1772691621266,3.91078373,90.31,90.26,3.53278563]
[1772691621468,3.91078373,90.308,90.26,3.53278563]
[1772691621669,18.02163141,90.307,90.27,3.53278563]
[1772691621865,18.02163141,90.306,90.27,3.53278563]
[1772691622176,18.02163141,90.305,90.27,3.53278563]
[1772691622372,9.4966422,90.304,90.27,3.53278563]
[1772691622578,3.91078373,90.323,90.28,3.53056853]
[1772691622579,18.02523004,90.319,90.28,3.53056853]
[1772691622879,8.52858784,90.318,90.28,3.53056853]
[1772691623175,3.91078373,90.323,90.28,3.53056853]
[1772691623176,8.52858784,90.321,90.28,3.53056853]
[1772691623366,8.52858784,90.32,90.28,3.53056853]
[1772691623568,3.91078373,90.323,90.28,3.53056853]
[1772691623774,8.52569045,90.322,90.28,3.53056853]
[1772691623975,8.52569045,90.321,90.28,3.53056853]
[1772691624272,12.43647418,90.32,90.271,3.75964456]
[1772691624577,12.43647418,90.32,90.205,155.177]
[1772691624578,3.91078373,90.309,90.256,9.97]
[1772691624877,3.91078373,90.307,90.254,3.75964456]
[1772691625878,9.964,90.311,90.264,3.75964456]
[1772691626177,9.963,90.319,90.266,3.75964456]
[1772691626372,13.87378373,90.319,90.266,3.75964456]
[1772691626579,3.91078373,90.317,90.266,3.75964456]
[1772691626969,13.87378373,90.317,90.266,3.75964456]
[1772691627370,3.77930901,90.316,90.266,3.75964456]
[1772691627571,9.962,90.322,90.267,3.63678309]
[1772691628173,8.52569045,90.328,90.275,3.63678309]
[1772691628378,8.52569045,90.329,90.275,3.63678309]
[1772691628680,3.77930901,90.33,90.275,3.63678309]
[1772691628981,3.77930901,90.327,90.275,3.63678309]
[1772691629380,9.963,90.314,90.251,3.63678309]
[1772691629578,3.77930901,90.327,90.251,3.63678309]
[1772691630479,3.77930901,90.327,90.25,7.56632563]
[1772691630480,3.77930901,90.327,90.277,3.63678309]
[1772691630979,3.77930901,90.327,90.278,9.967]
[1772691631380,3.77930901,90.327,90.277,3.63678309]
[1772691631779,9.963,90.318,90.277,3.63678309]
[1772691632379,3.77930901,90.317,90.268,9.968]
[1772691635076,9.963,90.312,90.268,9.968]
[1772691635276,7.56632563,90.34,90.233,19.945]
[1772691635277,3.77930901,90.311,90.26,9.969]
[1772691635777,3.77930901,90.309,90.26,9.969]
[1772691635983,3.77930901,90.299,90.231,3.63678309]
[1772691636586,3.77930901,90.288,90.24,9.971]
[1772691638383,9.966,90.287,90.24,9.971]
[1772691638587,9.966,90.287,90.232,9.972]
[1772691638979,13.74530901,90.287,90.232,9.972]
[1772691639182,9.967,90.28,90.232,9.972]
[1772691639378,9.967,90.28,90.232,13.60878309]
[1772691639778,9.967,90.28,90.232,9.972]
[1772691640087,9.967,90.28,90.236,9.972]
[1772691641191,9.967,90.28,90.239,9.971]
[1772691642792,9.967,90.28,90.237,3.63678309]
[1772691643388,9.968,90.273,90.223,13.60978309]
[1772691643593,3.77930901,90.287,90.223,3.63678309]
[1772691644492,3.77930901,90.28,90.23,9.972]
[1772691645694,3.77930901,90.28,90.237,9.972]
[1772691646599,7.31337883,90.28,90.237,9.972]
[1772691647688,3.77930901,90.297,90.254,9.97]
[1772691647885,3.53406982,90.29,90.254,9.97]
[1772691648195,3.77930901,90.289,90.24,3.53406982]
[1772691648387,3.77930901,90.289,90.235,3.63678309]
[1772691648795,3.80685894,90.287,90.238,9.972]
[1772691649094,3.53406982,90.28,90.238,9.972]
[1772691649591,3.53406982,90.28,90.246,9.971]
[1772691649794,3.80685894,90.287,90.246,9.971]
[1772691650093,3.80685894,90.287,90.253,9.97]
[1772691650399,26.58626146,90.299,90.253,9.97]
[1772691650591,3.80685894,90.298,90.253,9.97]
[1772691650891,3.80685894,90.296,90.243,3.92737388]
[1772691651089,3.53406982,90.29,90.243,3.92737388]
[1772691651487,3.80685894,90.279,90.236,9.972]
[1772691652091,3.80685894,90.279,90.227,3.92737388]
[1772691652888,3.80685894,90.269,90.223,9.973]
[1772691653090,3.80685894,90.269,90.213,3.92737388]
[1772691653389,3.80685894,90.269,90.222,9.973]
[1772691653588,3.53406982,90.29,90.241,3.92737388]
[1772691653895,3.80685894,90.298,90.241,3.92737388]
[1772691654094,7.34092876,90.29,90.241,3.92737388]
[1772691655398,9.966,90.288,90.242,9.971]
[1772691655997,9.966,90.288,90.241,3.92737388]
[1772691656698,9.966,90.288,90.242,3.92737388]
[1772691658499,9.966,90.288,90.245,9.971]
[1772691659594,9.966,90.288,90.242,3.92737388]
[1772691659798,13.77285894,90.286,90.242,3.92737388]
[1772691660498,3.80685894,90.277,90.229,9.973]
[1772691661496,13.77485894,90.275,90.229,9.973]
[1772691661692,3.80685894,90.274,90.229,9.973]
[1772691661898,26.58626146,90.313,90.22,3.53406982]
[1772691661899,3.80685894,90.269,90.221,9.973]
[1772691662095,3.80685894,90.266,90.221,9.973]
[1772691664298,3.80685894,90.266,90.227,9.973]
[1772691664901,13.50106982,90.28,90.235,9.972]
[1772691665102,3.80685894,90.279,90.235,9.972]
[1772691666100,3.80685894,90.296,90.251,9.97]
[1772691666300,3.80685894,90.296,90.251,3.92737388]
[1772691667406,3.80685894,90.296,90.263,9.969]
[1772691668697,3.80685894,90.296,90.255,9.97]
[1772691669903,3.53406982,90.3,90.26,3.92737388]
[1772691670103,17.30492876,90.31,90.26,3.92737388]
[1772691670401,3.80685894,90.299,90.25,3.53406982]
[1772691670706,3.53406982,90.28,90.245,3.92737388]